bitfinex/quotes_SOLUSD_20240827
["timestamp","ask_amount","ask_price","bid_price","bid_amount"]
[1724789606482,50.0,155.22,155.17,21.61529038]
[1724789606794,50.0,155.22,155.17,20.0]
[1724789607900,50.0,155.22,155.16,12.76650443]
[1724789608202,50.0,155.22,155.17,1.61532449]
[1724789608384,50.0,155.22,155.16,12.76650443]
[1724789608585,50.0,155.22,155.17,1.61532581]
[1724789608900,50.0,155.22,155.16,12.76650443]
[1724789609103,50.0,155.22,155.17,1.61532581]
[1724789609294,50.0,155.22,155.16,12.76650443]
[1724789609495,50.0,155.22,155.17,1.615317]
[1724789609701,50.0,155.22,155.16,12.76650443]
[1724789609899,50.0,155.22,155.17,1.61531723]
[1724789610081,50.0,155.22,155.16,12.76650443]
[1724789610404,50.0,155.22,155.17,1.61530923]
[1724789610610,50.0,155.2,155.15,0.12549]
[1724789610810,50.0,155.18,155.15,20.0]
[1724789614288,50.0,155.18,155.13,20.0]
[1724789614488,50.0,155.18,155.14,1.74103604]
[1724789614693,50.0,155.18,155.14,0.12549]
[1724789616101,50.0,155.16,155.13,20.0]
[1724789616294,50.0,155.16,155.14,1.61557695]
[1724789616493,50.0,155.16,155.13,20.0]
[1724789616701,50.0,155.16,155.11,7.2698526]
[1724789616901,50.0,155.16,155.12,4.98117021]
[1724789617187,50.0,155.16,155.13,1.61564072]
[1724789617382,50.0,155.16,155.1,28.52110443]
[1724789617605,50.0,155.16,155.11,50.10674988]
[1724789617795,50.0,155.16,155.12,1.61566474]
[1724789617996,50.0,155.16,155.13,1.61566474]
[1724789618207,50.0,155.16,155.12,20.0]
[1724789619293,50.0,155.14,155.09,12.76650443]
[1724789619492,50.0,155.12,155.1,4.9818374]
[1724789619690,50.0,155.12,155.07,12.76650443]
[1724789620011,50.0,155.12,155.08,4.98225478]
[1724789620194,50.0,155.12,155.09,1.61594959]
[1724789620399,50.0,155.12,155.07,12.76650443]
[1724789620608,50.0,155.12,155.08,1.6161604]
[1724789620809,50.0,155.12,155.08,20.0]
[1724789621316,50.0,155.14,155.09,59.18151417]
[1724789622597,50.0,155.14,155.09,57.89199443]
[1724789623198,50.0,155.14,155.09,45.12549]
[1724789623488,50.0,155.12,155.08,32.89199443]
[1724789623891,50.0,155.12,155.08,32.76650443]
[1724789624508,50.0,155.12,155.08,12.76650443]
[1724789626190,50.0,155.12,155.06,16.4946]
[1724789626400,50.0,155.12,155.07,65.25098]
[1724789628122,50.0,155.1,155.02,21.52206561]
[1724789628295,50.0,155.1,155.03,12.76650443]
[1724789628653,50.0,155.1,155.05,12.76650443]
[1724789629415,50.0,155.1,155.02,16.4946]
[1724789629592,50.0,155.1,155.05,12.76650443]
[1724789630223,50.0,155.1,155.06,20.0]
[1724789630396,65.5492,155.1,155.03,45.25098]
[1724789630594,65.5492,155.1,155.04,12.76650443]
[1724789630818,65.5492,155.1,155.05,20.0]
[1724789633998,50.0,155.08,155.05,20.0]
[1724789634198,50.0,155.08,155.03,45.25098]
[1724789634199,50.0,155.06,155.02,12.76650443]
[1724789635018,56.2061,155.08,155.02,12.76650443]
[1724789635594,56.2061,155.08,155.03,20.0]
[1724789640821,56.2061,155.08,155.04,12.76650443]
[1724789642223,50.0,155.1,155.06,12.76650443]
[1724789643533,50.0,155.08,155.03,32.76650443]
[1724789643827,50.0,155.08,155.04,0.12549]
[1724789645826,50.0,155.06,155.03,32.76650443]
[1724789646030,50.0,155.06,155.01,12.89199443]
[1724789646226,50.0,155.06,155.02,20.0]
[1724789646728,50.0,155.06,155.0,20.0]
[1724789647619,50.0,155.06,154.96,59.34398776]
[1724789647620,50.0,155.04,154.96,59.34398776]
[1724789647809,50.0,155.04,154.99,12.76650443]
[1724789650307,50.0,155.04,155.0,20.0]
[1724789657312,50.0,155.04,155.01,12.76650443]
[1724789658659,50.0,155.04,155.0,20.0]
[1724789666039,56.24,155.06,155.01,12.76650443]
[1724789667236,56.24,155.06,155.01,14.05656677]
[1724789668620,56.24,155.06,155.01,12.76650443]
[1724789670427,56.24,155.06,155.01,14.05659508]
[1724789670627,56.24,155.06,155.01,12.76650443]
[1724789672631,50.0,155.08,155.03,12.76650443]
[1724789672952,15.4518,155.09,155.05,12.76650443]
[1724789681943,56.2196,155.1,155.05,12.76650443]
[1724789682947,50.0,155.07,155.03,12.76650443]
[1724789683635,50.0,155.07,155.01,12.76650443]
[1724789683847,50.0,155.07,155.02,66.61670311]
[1724789684037,50.0,155.07,155.02,65.0]
[1724789699052,50.0,155.05,155.02,20.0]
[1724789699248,50.0,155.05,155.01,20.12549]
[1724789699568,50.0,155.05,155.02,1.61675597]
[1724789699768,50.0,155.05,155.01,20.12549]
[1724789701058,50.0,155.05,155.02,1.61676457]
[1724789701267,50.0,155.05,155.01,20.12549]
[1724789701458,50.0,155.05,155.02,1.61676286]
[1724789701766,50.0,155.05,155.01,20.12549]
[1724789702350,50.0,155.05,155.02,1.61675597]
[1724789702540,50.0,155.05,155.01,20.12549]
[1724789702876,50.0,155.05,155.01,20.0]
[1724789703173,50.0,155.05,155.0,20.0]
[1724789703467,50.0,155.05,155.01,1.74233286]
[1724789703652,50.0,155.05,155.01,0.12549]
[1724789724887,50.0,155.05,155.02,1.6168684]
[1724789725191,50.0,155.05,155.01,0.12549]
[1724789725496,50.0,155.05,155.02,1.6168684]
[1724789725784,50.0,155.05,155.01,0.12549]
[1724789725984,50.0,155.05,155.02,1.6168598]
[1724789726158,50.0,155.05,155.01,0.12549]
[1724789726562,50.0,155.05,155.02,1.6168684]
[1724789726781,50.0,155.05,155.01,0.12549]
[1724789726983,50.0,155.05,155.02,1.61686816]
[1724789727285,50.0,155.05,155.01,0.12549]
[1724789727487,50.0,155.05,155.02,1.6168684]
[1724789727667,50.0,155.05,155.01,0.12549]
[1724789727967,50.0,155.05,155.02,1.61686816]
[1724789728168,50.0,155.05,155.01,0.12549]
[1724789728379,50.0,155.05,155.02,1.6168684]
[1724789728584,50.0,155.05,155.01,0.12549]
[1724789728784,50.0,155.05,155.02,1.61686816]
[1724789729081,50.0,155.05,155.01,0.12549]
[1724789729284,50.0,155.05,155.02,1.61686523]
[1724789729488,50.0,155.05,155.01,0.12549]
[1724789729782,50.0,155.05,155.02,1.6168684]
[1724789729991,50.0,155.05,155.01,0.12549]
[1724789730298,50.0,155.05,155.02,1.61686816]
[1724789730593,50.0,155.05,155.01,0.12549]
[1724789730784,50.0,155.05,155.02,1.6168684]
[1724789730984,50.0,155.03,155.0,20.0]
[1724789731190,50.0,155.03,155.01,1.61690876]
[1724789731493,50.0,155.03,155.02,1.61690876]
[1724789732089,50.0,155.0,154.98,0.8436647]
[1724789732676,62.76650443,155.0,154.98,0.8436647]
[1724789732867,22.6148,154.99,154.98,0.8436647]
[1724789738000,23.73748286,154.99,154.98,0.8436647]
[1724789738981,22.6148,154.99,154.98,0.8436647]
[1724789750608,35.38130443,154.99,154.98,0.8436647]
[1724789751302,22.6148,154.99,154.98,0.8436647]
[1724789756516,35.38130443,154.99,154.98,0.8436647]
[1724789756706,42.07790212,154.99,154.98,0.8436647]
[1724789757223,29.31139769,154.99,154.98,0.8436647]
[1724789757391,74.43688769,154.99,154.98,0.8436647]
[1724789757715,87.20339212,154.99,154.98,0.8436647]
[1724789759386,88.32562346,154.99,154.98,0.8436647]
[1724789760512,88.32562346,154.99,154.53,101.15878924]
[1724789760513,50.0,154.89,154.84,12.76650443]
[1724789761895,50.0,154.89,154.86,12.76650443]
[1724789762109,50.0,154.91,154.86,12.76650443]
[1724789762329,50.0,154.89,154.86,12.76650443]
[1724789767314,50.0,154.89,154.83,16.0509647]
[1724789767491,50.0,154.89,154.86,12.76650443]
[1724789770020,50.0,154.91,154.88,12.76650443]
[1724789770198,22.4256,154.93,154.88,12.76650443]
[1724789770199,50.0,154.93,154.88,12.76650443]
[1724789770801,50.0,154.95,154.9,12.76650443]
[1724789771404,50.0,154.95,154.92,12.76650443]
[1724789772031,50.0,154.97,154.92,12.76650443]
[1724789772213,50.0,154.97,154.94,12.76650443]
[1724789773525,50.0,154.97,154.93,12.76650443]
[1724789773700,50.0,154.94,154.92,12.76650443]
[1724789774025,50.0,154.96,154.92,12.76650443]
[1724789777018,50.0,154.96,154.91,0.12549]
[1724789777019,50.0,154.98,154.94,12.76650443]
[1724789777605,21.5051,155.02,154.91,1.41628118]
[1724789777606,50.0,155.0,154.96,12.76650443]
[1724789777798,50.0,155.0,154.98,12.76650443]
[1724789778028,50.0,155.02,154.98,12.76650443]
[1724789787736,50.0,155.02,154.98,12.76650443]
[1724789790035,50.0,155.0,154.98,12.76650443]
[1724789793772,50.0,155.02,154.99,0.12549]
[1724789793929,50.0,155.02,155.0,12.76650443]
[1724789796134,50.0,155.02,154.98,12.76650443]
[1724789805648,50.0,155.06,155.0,12.76650443]
[1724789805827,51.12155295,155.08,155.05,12.76650443]
[1724789806146,50.0,155.08,155.05,12.76650443]
[1724789812046,50.0,155.1,155.05,12.76650443]
[1724789815041,50.0,155.08,155.03,12.76650443]
[1724789817856,50.0,155.1,155.05,12.76650443]
[1724789820443,50.0,155.1,155.07,12.76650443]
[1724789821042,50.0,155.1,155.05,12.76650443]
[1724789821566,41.25450443,155.14,154.99,20.0]
[1724789821567,50.0,155.06,154.99,20.0]
[1724789821741,50.0,155.06,155.01,12.76650443]
[1724789821934,50.0,155.06,155.02,20.0]
[1724789824759,50.0,155.06,155.03,12.76650443]
[1724789825741,50.0,155.08,155.03,12.76650443]
[1724789827841,50.0,155.08,155.05,12.76650443]
[1724789829031,50.0,155.1,155.05,12.76650443]
[1724789830736,50.0,155.12,155.07,12.76650443]
[1724789830936,50.0,155.12,155.06,46.41522611]
[1724789830937,50.0,155.14,155.11,12.76650443]
[1724789835856,50.0,155.14,155.09,12.76650443]
[1724789837964,50.0,155.14,155.08,0.12549]
[1724789838167,50.0,155.14,155.09,12.76650443]
[1724789845252,50.0,155.14,155.11,12.76650443]
[1724789846665,50.0,155.16,155.11,12.76650443]
[1724789847778,50.0,155.14,155.11,12.76650443]
[1724789851282,50.0,155.16,155.11,12.76650443]
[1724789851966,72.6037,155.18,155.13,12.76650443]
[1724789852687,50.0,155.16,155.13,12.76650443]
[1724789855671,50.0,155.18,155.15,12.76650443]
[1724789855882,50.0,155.2,155.17,12.76650443]
[1724789856486,50.0,155.22,155.17,12.76650443]
[1724789860089,6.1687,155.23,155.17,12.76650443]
[1724789860090,50.0,155.2,155.17,12.76650443]
[1724789867584,50.0,155.22,155.17,12.76650443]
[1724789868678,50.0,155.24,155.19,12.76650443]
[1724789869288,65.3386,155.26,155.21,12.76650443]
[1724789869494,50.0,155.26,155.21,12.76650443]
[1724789869978,50.0,155.26,155.23,12.76650443]
[1724789870179,50.0,155.28,155.23,12.76650443]
[1724789875398,50.0,155.28,155.22,0.12549]
[1724789875598,50.0,155.26,155.21,45.25098]
[1724789876318,50.0,155.26,155.21,0.12549]
[1724789876485,50.0,155.26,155.2,20.25098]
[1724789878182,50.0,155.26,155.21,57.76650443]
[1724789881790,50.0,155.26,155.2,0.25098]
[1724789881989,50.0,155.26,155.2,45.25098]
[1724789882802,50.0,155.24,155.2,0.12549]
[1724789883083,50.0,155.24,155.19,28.55690443]
[1724789884520,50.0,155.26,155.19,28.55690443]
[1724789884720,50.0,155.26,155.2,46.53940939]
[1724789886099,50.0,155.24,155.2,45.25098]
[1724789887913,50.0,155.24,155.2,0.12549]
[1724789888212,50.0,155.24,155.19,28.55690443]
[1724789891348,50.0,155.22,155.18,0.12549]
[1724789891711,50.0,155.22,155.18,45.25098]
[1724789896519,50.0,155.22,155.15,15.8539]
[1724789896723,50.0,155.22,155.16,65.12549]
[1724789897014,50.0,155.2,155.16,20.12549]
[1724789897223,50.0,155.2,155.15,0.12549]
[1724789897417,50.0,155.2,155.14,20.25098]
[1724789898023,50.0,155.18,155.11,15.6506]
[1724789898325,50.0,155.16,155.12,1.61541828]
[1724789898496,50.0,155.16,155.11,16.13142592]
[1724789898702,50.0,155.16,155.12,1.61540834]
[1724789898918,50.0,155.16,155.11,12.76650443]
[1724789899113,50.0,155.16,155.12,1.61543653]
[1724789899303,50.0,155.16,155.13,1.61543809]
[1724789899495,50.0,155.16,155.12,65.0]
[1724789900124,50.0,155.16,155.13,1.61545576]
[1724789900427,50.0,155.18,155.13,14.05566514]
[1724789901502,15.3876,155.19,155.13,14.05566514]
[1724789901809,50.0,155.2,155.15,12.76650443]
[1724789902326,50.0,155.22,155.17,12.76650443]
[1724789905707,50.0,155.22,155.16,0.25098]
[1724789905914,50.0,155.22,155.16,45.25098]
[1724789906304,50.0,155.22,155.17,12.76650443]
[1724789914030,50.0,155.22,155.18,45.25098]
[1724789915307,50.0,155.22,155.18,0.12549]
[1724789915508,50.0,155.22,155.15,12.76650443]
[1724789915725,50.0,155.22,155.16,46.86616927]
[1724789915937,50.0,155.22,155.16,45.25098]
[1724789918406,50.0,155.2,155.16,45.25098]
[1724789918612,50.0,155.2,155.13,28.17620443]
[1724789918812,50.0,155.2,155.14,22.90424233]
[1724789919034,50.0,155.2,155.15,1.61530236]
[1724789919348,50.0,155.2,155.14,21.28893997]
[1724789919523,50.0,155.2,155.15,1.6153522]
[1724789919723,50.0,155.2,155.14,21.28893997]
[1724789919932,50.0,155.2,155.15,1.6153616]
[1724789920241,50.0,155.2,155.14,21.28893997]
[1724789920536,50.0,155.2,155.15,1.74084208]
[1724789920729,50.0,155.2,155.15,0.12549]
[1724789926646,50.0,155.22,155.15,58.01748443]
[1724789927014,50.0,155.22,155.17,12.76650443]
[1724789929126,50.0,155.22,155.18,45.25098]
[1724789934620,50.0,155.24,155.19,14.05517852]
[1724789938258,50.0,155.24,155.18,45.25098]
[1724789938555,50.0,155.18,155.11,12.76650443]
[1724789938734,50.0,155.18,155.12,12.248766]
[1724789938934,50.0,155.18,155.13,12.248766]
[1724789939139,50.0,155.18,155.14,4.98020883]
[1724789939335,50.0,155.18,155.15,4.98020883]
[1724789939642,50.0,155.18,155.16,1.61538321]
[1724789939842,50.0,155.18,155.14,3.36491854]
[1724789940049,50.0,155.18,155.15,1.86639697]
[1724789940353,50.0,155.18,155.15,45.25098]
[1724789940758,50.0,155.18,155.11,12.76650443]
[1724789940926,50.0,155.18,155.12,12.24915556]
[1724789941136,50.0,155.16,155.13,4.98037019]
[1724789941434,50.0,155.16,155.14,1.61542643]
[1724789941635,50.0,155.16,155.09,28.76850443]
[1724789941636,50.0,155.16,155.1,10.63523753]
[1724789941824,50.0,155.16,155.11,6.27356598]
[1724789942029,50.0,155.16,155.12,24.98107425]
[1724789942256,50.0,155.16,155.13,1.61561598]
[1724789942434,50.0,155.16,155.1,25.97744893]
[1724789942629,50.0,155.16,155.11,50.23218743]
[1724789942830,50.0,155.16,155.12,20.0]
[1724789943041,50.0,155.16,155.12,21.61565116]
[1724789943237,50.0,155.16,155.13,1.61565116]
[1724789943443,50.0,155.16,155.12,20.0]
[1724789943659,50.0,155.16,155.13,1.61565951]
[1724789943831,50.0,155.16,155.12,20.0]
[1724789944030,50.0,155.16,155.13,1.61566809]
[1724789944231,50.0,155.16,155.12,20.0]
[1724789944432,50.0,155.16,155.13,1.61566678]
[1724789944762,50.0,155.16,155.12,20.0]
[1724789944939,50.0,155.16,155.13,1.61564961]
[1724789945136,50.0,155.16,155.12,20.0]
[1724789945338,50.0,155.16,155.13,1.61565093]
[1724789945538,50.0,155.16,155.12,20.0]
[1724789945738,50.0,155.16,155.13,1.61565069]
[1724789945947,50.0,155.16,155.12,20.0]
[1724789950039,22.4354,155.23,155.12,20.0]
[1724789950040,50.0,155.18,155.13,14.05571988]
[1724789950241,50.0,155.2,155.15,12.76650443]
[1724789950435,50.0,155.2,155.15,14.05538959]
[1724789950860,50.0,155.2,155.16,0.12549]
[1724789951547,50.0,155.2,155.16,1.41431227]
[1724789951867,50.0,155.2,155.16,0.12549]
[1724789954047,50.0,155.2,155.14,45.12549]
[1724789954358,50.0,155.18,155.14,45.12549]
[1724789961378,50.0,155.2,155.14,45.12549]
[1724789968281,50.0,155.2,155.15,12.89199443]
[1724789968482,50.0,155.22,155.16,45.12549]
[1724789968653,50.0,155.22,155.17,0.12549]
[1724789969162,50.0,155.22,155.17,14.18066768]
[1724789969362,50.0,155.22,155.18,45.12549]
[1724789987902,50.0,155.26,155.21,12.76650443]
[1724789988199,50.0,155.26,155.23,12.76650443]
[1724789996992,50.0,155.28,155.23,12.76650443]
[1724789998307,21.6067,155.31,155.22,45.25098]
[1724789998308,50.0,155.3,155.25,12.76650443]
[1724789998492,50.0,155.3,155.22,45.25098]
[1724789998493,50.0,155.32,155.27,12.76650443]
[1724789999604,50.0,155.32,155.28,1.28792035]
[1724789999910,50.0,155.32,155.27,12.76650443]
[1724790000487,50.0,155.32,155.26,0.12549]
[1724790000684,15.2161,155.35,155.26,20.25098]
[1724790000685,50.0,155.3,155.26,20.25098]
[1724790001096,50.0,155.3,155.26,0.25098]
[1724790001293,50.0,155.3,155.25,65.25098]
[1724790001699,50.0,155.28,155.2,16.5757]
[1724790001899,50.0,155.28,155.21,14.38102229]
[1724790002101,50.0,155.28,155.21,12.76650443]
[1724790002817,50.0,155.28,155.23,12.76650443]
[1724790002988,50.0,155.3,155.23,12.76650443]
[1724790003318,50.0,155.3,155.25,12.76650443]
[1724790003505,50.0,155.32,155.25,12.76650443]
[1724790004018,50.0,155.32,155.26,45.25098]
[1724790004315,50.0,155.3,155.26,0.12549]
[1724790004994,50.0,155.3,155.25,12.76650443]
[1724790005317,50.0,155.3,155.23,12.76650443]
[1724790005493,50.0,155.3,155.24,45.25098]
[1724790007293,50.0,155.32,155.25,12.76650443]
[1724790007498,50.0,155.32,155.26,45.25098]
[1724790014627,50.0,155.34,155.27,14.05440841]
[1724790014922,50.0,155.34,155.28,45.25098]
[1724790018818,50.0,155.34,155.29,14.05431367]
[1724790019121,50.0,155.36,155.29,14.05431367]
[1724790019704,50.0,155.34,155.29,14.05431367]
[1724790021335,50.0,155.34,155.28,45.25098]
[1724790021507,50.0,155.32,155.28,45.25098]
[1724790025129,50.0,155.3,155.26,16.0363]
[1724790025332,50.0,155.3,155.25,0.12549]
[1724790025630,50.0,155.3,155.25,20.0]
[1724790025842,50.0,155.3,155.22,28.04280443]
[1724790026141,50.0,155.27,155.22,15.2763]
[1724790027429,50.0,155.27,155.23,20.12549]
[1724790029627,50.0,155.25,155.18,15.1441]
[1724790029827,50.0,155.25,155.18,27.91060443]
[1724790031038,50.0,155.25,155.19,65.25098]
[1724790040236,50.0,155.23,155.19,65.25098]
[1724790041945,50.0,155.25,155.19,65.25098]
[1724790043456,50.0,155.23,155.19,65.25098]
[1724790053543,50.0,155.25,155.19,65.25098]
[1724790054347,50.0,155.25,155.2,1.28855933]
[1724790054657,50.0,155.25,155.21,1.28843417]
[1724790054834,36.37060822,155.29,155.19,65.25098]
[1724790054835,50.0,155.27,155.19,65.25098]
[1724790055257,50.0,155.27,155.2,12.76650443]
[1724790055457,50.0,155.27,155.21,45.25098]
[1724790057536,72.4815,155.29,155.21,46.53930822]
[1724790057735,56.1128,155.29,155.22,12.76650443]
[1724790057936,56.1128,155.29,155.23,45.25098]
[1724790058737,65.6152,155.33,155.26,12.76650443]
[1724790058954,50.0,155.33,155.27,45.25098]
[1724790060761,50.0,155.31,155.27,45.25098]
[1724790062956,50.0,155.31,155.27,45.0]
[1724790063142,50.0,155.31,155.26,45.0]
[1724790063945,50.0,155.29,155.21,15.7387]
[1724790064146,50.0,155.29,155.22,20.0]
[1724790065253,50.0,155.29,155.23,45.12549]
[1724790066955,50.0,155.27,155.17,5.31700013]
[1724790067146,50.0,155.27,155.19,12.76650443]
[1724790067860,50.0,155.27,155.17,15.7487]
[1724790068038,50.0,155.27,155.19,12.76650443]
[1724790068246,50.0,155.25,155.17,28.51520443]
[1724790069335,50.0,155.25,155.16,12.76650443]
[1724790069535,50.0,155.25,155.17,1.61499761]
[1724790069755,50.0,155.25,155.16,12.76650443]
[1724790069959,50.0,155.25,155.17,21.61499761]
[1724790070267,50.0,155.23,155.17,20.0]
[1724790070753,50.0,155.23,155.18,45.25098]
[1724790071263,50.0,155.21,155.14,12.76650443]
[1724790071495,56.1234,155.21,155.15,1.61516188]
[1724790071765,50.0,155.19,155.13,3.35367686]
[1724790071949,50.0,155.19,155.14,1.61532983]
[1724790072263,50.0,155.19,155.12,16.12018129]
[1724790072477,50.0,155.19,155.13,1.61544043]
[1724790072773,50.0,155.19,155.12,12.76650443]
[1724790072964,50.0,155.19,155.13,1.61542277]
[1724790073273,50.0,155.17,155.13,1.61542277]
[1724790074156,50.0,155.17,155.1,1.29235205]
[1724790074565,50.0,155.15,155.09,28.19710443]
[1724790074741,50.0,155.15,155.1,20.0]
[1724790075168,50.0,155.15,155.07,12.76650443]
[1724790075169,50.0,155.15,155.08,20.0]
[1724790076257,50.0,155.15,155.09,48.48292741]
[1724790076461,50.0,155.15,155.1,0.12549]
[1724790076870,50.0,155.13,155.09,48.48292741]
[1724790077873,50.0,155.13,155.09,3.48292741]
[1724790078575,50.0,155.13,155.09,0.12549]
[1724790078876,50.0,155.13,155.08,45.12549]
[1724790079171,50.0,155.13,155.08,0.12549]
[1724790079383,50.0,155.13,155.08,20.25098]
[1724790079556,50.0,155.13,155.09,45.0]
[1724790079876,50.0,155.11,155.04,28.34060443]
[1724790080065,50.0,155.11,155.05,20.0]
[1724790080982,50.0,155.11,155.06,1.28965477]
[1724790081188,50.0,155.11,155.05,20.0]
[1724790081358,50.0,155.11,155.06,45.25098]
[1724790081558,50.0,155.11,155.07,20.0]
[1724790081980,50.0,155.11,155.06,45.25098]
[1724790082159,50.0,155.11,155.06,0.25098]
[1724790082356,50.0,155.11,155.06,20.25098]
[1724790082563,50.0,155.11,155.07,45.0]
[1724790088782,50.0,155.09,155.01,12.76650443]
[1724790088961,50.0,155.07,155.01,12.76650443]
[1724790090184,50.0,155.07,155.02,20.0]
[1724790090968,50.0,155.07,155.0,20.0]
[1724790091169,50.0,155.07,155.01,0.12549]
[1724790091689,50.0,155.05,154.96,20.81650013]
[1724790091870,50.0,155.05,154.97,12.76650443]
[1724790092065,50.0,155.03,154.97,12.76650443]
[1724790093380,50.0,155.03,154.98,20.0]
[1724790094291,50.0,155.03,154.99,45.0]
[1724790095183,50.0,155.01,154.95,12.76650443]
[1724790095489,6.3587,155.02,154.97,12.76650443]
[1724790095676,6.3587,155.02,154.97,14.05687681]
[1724790095992,6.3587,155.02,154.97,12.76650443]
[1724790096370,6.3587,155.02,154.98,0.12549]
[1724790096894,6.3587,155.02,154.97,65.12549]
[1724790097681,21.9821,155.06,154.97,65.12549]
[1724790097884,71.9821,155.06,154.98,12.89199443]
[1724790098080,71.9821,155.06,154.99,45.12549]
[1724790098283,71.9821,155.06,155.0,0.12549]
[1724790098674,50.0,155.04,155.0,0.12549]
[1724790100197,50.0,155.02,154.99,45.0]
[1724790100496,50.0,155.02,154.97,20.0]
[1724790100796,50.0,155.02,154.96,20.0]
[1724790101798,50.0,155.02,154.97,45.0]
[1724790104695,22.7357,155.01,154.97,45.0]
[1724790107402,50.0,154.97,154.9,12.76650443]
[1724790108478,50.0,154.97,154.88,16.1564]
[1724790108686,50.0,154.97,154.9,12.76650443]
[1724790109198,50.0,154.97,154.91,20.0]
[1724790109999,50.0,154.97,154.92,14.05737213]
[1724790110181,50.0,154.97,154.93,20.0]
[1724790110684,50.0,154.97,154.94,45.0]
[1724790112401,50.0,154.99,154.94,45.0]
[1724790112604,50.0,154.99,154.94,57.76650443]
[1724790112806,50.0,154.99,154.95,0.25098]
[1724790113006,50.0,154.99,154.95,0.12549]
[1724790113197,50.0,154.97,154.94,45.0]
[1724790115306,50.0,154.97,154.92,12.76650443]
[1724790115613,50.0,154.97,154.93,65.0]
[1724790117806,50.0,154.99,154.94,12.76650443]
[1724790118106,50.0,154.99,154.95,45.0]
[1724790120187,72.7357,155.01,154.95,45.0]
[1724790121220,50.0,154.99,154.95,45.0]
[1724790124616,72.7357,155.01,154.95,45.0]
[1724790124992,72.7357,155.01,154.95,46.29055666]
[1724790125291,50.0,154.97,154.94,12.76650443]
[1724790125612,50.0,154.97,154.9,12.76650443]
[1724790125793,50.0,154.95,154.88,28.92290443]
[1724790125988,72.701,154.95,154.83,17.4294647]
[1724790126207,72.701,154.95,154.87,12.76650443]
[1724790127319,50.0,154.91,154.84,3.37071013]
[1724790127611,50.0,154.91,154.86,12.76650443]
[1724790128908,50.0,154.91,154.87,20.0]
[1724790130293,50.0,154.93,154.88,45.0]
[1724790131119,50.0,154.91,154.88,45.0]
[1724790131298,50.0,154.93,154.88,45.0]
[1724790132990,50.0,154.91,154.88,45.0]
[1724790134304,50.0,154.93,154.88,45.0]
[1724790135799,50.0,154.91,154.87,20.0]
[1724790136316,50.0,154.93,154.88,45.0]
[1724790136688,50.0,154.93,154.88,57.76650443]
[1724790138207,50.0,154.93,154.89,0.12549]
[1724790140795,50.0,154.93,154.88,57.76650443]
[1724790140995,50.0,154.93,154.88,45.0]
[1724790141797,50.0,154.93,154.88,57.76650443]
[1724790142197,50.0,154.93,154.89,0.12549]
[1724790145111,72.701,154.95,154.89,0.12549]
[1724790145314,72.701,154.95,154.89,0.25098]
[1724790146107,50.0,154.93,154.89,0.25098]
[1724790151728,50.0,154.93,154.9,12.76650443]
[1724790156604,50.0,154.95,154.92,12.76650443]
[1724790156804,50.0,154.97,154.92,12.76650443]
[1724790157023,50.0,154.97,154.93,45.0]